[Event "*** Titled Tuesday Blitz"]
[Site "Chess.com"]
[Date "2020.04.21"]
[Round "5"]
[White "Grineva_Marianna"]
[Black "VALPARAISO37"]
[Result "1-0"]
[WhiteElo "2190"]
[BlackElo "2338"]
[TimeControl "180+1"]
[EndTime "10:55:53 PDT"]
[Termination "Grineva_Marianna won by checkmate"]

1. d4 {[%clk 0:03:00.9]} 1... Nf6 {[%clk 0:02:59.6]} 2. c4 {[%clk 0:02:59.9]}
2... e6 {[%clk 0:02:59.9]} 3. Nc3 {[%clk 0:03:00.2]} 3... Bb4 {[%clk 0:02:59.9]}
4. e3 {[%clk 0:02:55.9]} 4... O-O {[%clk 0:02:59.4]} 5. Ne2 {[%clk 0:02:51.3]}
5... d5 {[%clk 0:02:59]} 6. a3 {[%clk 0:02:51.4]} 6... Be7 {[%clk 0:02:58]} 7.
Ng3 {[%clk 0:02:46.4]} 7... c5 {[%clk 0:02:53.1]} 8. dxc5 {[%clk 0:02:36]} 8...
Bxc5 {[%clk 0:02:51.7]} 9. b4 {[%clk 0:02:32.6]} 9... Be7 {[%clk 0:02:51.2]} 10.
Bb2 {[%clk 0:02:31.4]} 10... a5 {[%clk 0:02:51]} 11. b5 {[%clk 0:02:26.3]} 11...
b6 {[%clk 0:02:50.4]} 12. cxd5 {[%clk 0:02:21.3]} 12... exd5 {[%clk 0:02:50]}
13. Bd3 {[%clk 0:02:11.7]} 13... Nbd7 {[%clk 0:02:44.4]} 14. Nce2 {[%clk
0:01:59.5]} 14... Nc5 {[%clk 0:02:41.8]} 15. O-O {[%clk 0:01:58.5]} 15... Bd6
{[%clk 0:02:39.4]} 16. Nf5 {[%clk 0:01:51.5]} 16... Bb8 {[%clk 0:02:36.3]} 17.
Neg3 {[%clk 0:01:48]} 17... Nce4 {[%clk 0:02:32.3]} 18. f3 {[%clk 0:01:34.6]}
18... Nxg3 {[%clk 0:02:28.4]} 19. Nxg3 {[%clk 0:01:35.5]} 19... Re8 {[%clk
0:02:24.8]} 20. Qd2 {[%clk 0:01:33.5]} 20... Bd6 {[%clk 0:02:21.3]} 21. Bd4
{[%clk 0:01:29.3]} 21... Bc5 {[%clk 0:02:20.7]} 22. Bxc5 {[%clk 0:01:24.1]}
22... bxc5 {[%clk 0:02:20.3]} 23. a4 {[%clk 0:01:17.9]} 23... Qb6 {[%clk
0:02:19.3]} 24. Rfe1 {[%clk 0:01:14.4]} 24... Re7 {[%clk 0:02:16]} 25. Kh1
{[%clk 0:01:11.9]} 25... Re8 {[%clk 0:02:14]} 26. Rad1 {[%clk 0:01:07.3]} 26...
Ra7 {[%clk 0:02:12.9]} 27. Nf5 {[%clk 0:01:03.1]} 27... Bxf5 {[%clk 0:02:11.4]}
28. Bxf5 {[%clk 0:01:04]} 28... Rae7 {[%clk 0:02:11.1]} 29. g4 {[%clk 0:00:49]}
29... h5 {[%clk 0:02:08.7]} 30. g5 {[%clk 0:00:48.5]} 30... Nd7 {[%clk
0:02:00.7]} 31. Qxd5 {[%clk 0:00:47.3]} 31... Ne5 {[%clk 0:02:00.6]} 32. Kg2
{[%clk 0:00:36.6]} 32... c4 {[%clk 0:02:00.3]} 33. Qd4 {[%clk 0:00:31.2]} 33...
Qc7 {[%clk 0:01:58.4]} 34. Be4 {[%clk 0:00:24]} 34... Rd7 {[%clk 0:01:55.6]} 35.
Qc3 {[%clk 0:00:22.1]} 35... Red8 {[%clk 0:01:45.5]} 36. Rxd7 {[%clk 0:00:20.6]}
36... Rxd7 {[%clk 0:01:45.7]} 37. b6 {[%clk 0:00:20.8]} 37... Qc5 {[%clk
0:01:44.8]} 38. b7 {[%clk 0:00:19.3]} 38... Rd8 {[%clk 0:01:45]} 39. Rb1 {[%clk
0:00:18.7]} 39... Rb8 {[%clk 0:01:44.1]} 40. Rb5 {[%clk 0:00:18.4]} 40... Qd6
{[%clk 0:01:32.5]} 41. Qxe5 {[%clk 0:00:16.5]} 41... Qd2+ {[%clk 0:01:33.2]} 42.
Kg3 {[%clk 0:00:16.4]} 42... Qe1+ {[%clk 0:01:33.7]} 43. Kh3 {[%clk 0:00:14.5]}
43... Qf1+ {[%clk 0:01:33.3]} 44. Kg3 {[%clk 0:00:13.9]} 44... Qg1+ {[%clk
0:01:33.1]} 45. Kf4 {[%clk 0:00:11.7]} 45... Qg2 {[%clk 0:01:32.8]} 46. Qxb8#
{[%clk 0:00:10.1]} 1-0

[Event "*** Titled Tuesday Blitz"]
[Site "Chess.com"]
[Date "2020.04.21"]
[Round "5"]
[White "Kumi29"]
[Black "MarcoCorvi"]
[Result "0-1"]
[WhiteElo "2383"]
[BlackElo "2180"]
[TimeControl "180+1"]
[EndTime "10:55:54 PDT"]
[Termination "MarcoCorvi won by checkmate"]

1. d4 {[%clk 0:03:00.9]} 1... f5 {[%clk 0:02:58.6]} 2. e4 {[%clk 0:03:00.3]}
2... fxe4 {[%clk 0:02:57.4]} 3. Nc3 {[%clk 0:03:00.7]} 3... Nf6 {[%clk
0:02:56.9]} 4. Bg5 {[%clk 0:03:01]} 4... e6 {[%clk 0:02:56.9]} 5. f3 {[%clk
0:02:57.7]} 5... e3 {[%clk 0:02:54.8]} 6. Bd3 {[%clk 0:02:55.6]} 6... Be7 {[%clk
0:02:54.4]} 7. Bxe3 {[%clk 0:02:47.4]} 7... b6 {[%clk 0:02:54.1]} 8. f4 {[%clk
0:02:40.1]} 8... Bb7 {[%clk 0:02:52.4]} 9. Nf3 {[%clk 0:02:40.5]} 9... Nc6
{[%clk 0:02:48.5]} 10. Qe2 {[%clk 0:02:36.7]} 10... O-O {[%clk 0:02:47.4]} 11.
O-O-O {[%clk 0:02:32.4]} 11... Nb4 {[%clk 0:02:46.3]} 12. h3 {[%clk 0:02:21.1]}
12... Nxd3+ {[%clk 0:02:45.7]} 13. Rxd3 {[%clk 0:02:19.6]} 13... Be4 {[%clk
0:02:43.5]} 14. Nxe4 {[%clk 0:02:15.3]} 14... Nxe4 {[%clk 0:02:41.2]} 15. Qe1
{[%clk 0:02:03.2]} 15... d5 {[%clk 0:02:39]} 16. Nd2 {[%clk 0:01:57.4]} 16...
Nxd2 {[%clk 0:02:33.2]} 17. Bxd2 {[%clk 0:01:55.8]} 17... Qd7 {[%clk 0:02:26.9]}
18. Rf1 {[%clk 0:01:48.4]} 18... Rae8 {[%clk 0:02:26.3]} 19. g4 {[%clk
0:01:46.7]} 19... c5 {[%clk 0:02:22.7]} 20. dxc5 {[%clk 0:01:44.8]} 20... bxc5
{[%clk 0:02:19.9]} 21. Re3 {[%clk 0:01:42.2]} 21... Bd6 {[%clk 0:02:16.1]} 22.
f5 {[%clk 0:01:23.1]} 22... e5 {[%clk 0:02:10.2]} 23. Rd3 {[%clk 0:01:19.1]}
23... d4 {[%clk 0:02:03.3]} 24. Qe4 {[%clk 0:01:14.5]} 24... c4 {[%clk
0:02:02.2]} 25. Qd5+ {[%clk 0:01:12.9]} 25... Qf7 {[%clk 0:01:59.2]} 26. Qxf7+
{[%clk 0:01:10.5]} 26... Rxf7 {[%clk 0:01:58.3]} 27. Rdf3 {[%clk 0:01:09.2]}
27... e4 {[%clk 0:01:56]} 28. R3f2 {[%clk 0:01:00.6]} 28... e3 {[%clk 0:01:55]}
29. Re2 {[%clk 0:01:01.2]} 29... exd2+ {[%clk 0:01:54.2]} 30. Kxd2 {[%clk
0:01:01.8]} 30... Rxe2+ {[%clk 0:01:52]} 31. Kxe2 {[%clk 0:01:02.7]} 31... Re7+
{[%clk 0:01:51.3]} 32. Kf3 {[%clk 0:01:02.8]} 32... Re3+ {[%clk 0:01:44]} 33.
Kf2 {[%clk 0:01:02.3]} 33... Rxh3 {[%clk 0:01:42.8]} 34. Rd1 {[%clk 0:01:00.6]}
34... Be5 {[%clk 0:01:38.9]} 35. b3 {[%clk 0:00:58.2]} 35... c3 {[%clk
0:01:36.8]} 36. g5 {[%clk 0:00:55.6]} 36... Rh2+ {[%clk 0:01:35.7]} 37. Kf3
{[%clk 0:00:55.4]} 37... Rxc2 {[%clk 0:01:34.6]} 38. Ke4 {[%clk 0:00:56]} 38...
Re2+ {[%clk 0:01:29.1]} 39. Kd5 {[%clk 0:00:56.5]} 39... c2 {[%clk 0:01:26.7]}
40. Rc1 {[%clk 0:00:56.8]} 40... d3 {[%clk 0:01:25.5]} 41. f6 {[%clk 0:00:57]}
41... gxf6 {[%clk 0:01:23.2]} 42. gxf6 {[%clk 0:00:56.7]} 42... Bxf6 {[%clk
0:01:23.2]} 43. Kc6 {[%clk 0:00:54.5]} 43... Bg5 {[%clk 0:01:21.6]} 44. Rg1
{[%clk 0:00:54.1]} 44... h6 {[%clk 0:01:21.1]} 45. Kb5 {[%clk 0:00:52.3]} 45...
c1=Q {[%clk 0:01:19.8]} 46. Rg4 {[%clk 0:00:52.9]} 46... Re5+ {[%clk 0:01:15.1]}
47. Ka4 {[%clk 0:00:53.3]} 47... Qc6+ {[%clk 0:01:12.6]} 48. Ka3 {[%clk
0:00:53.1]} 48... Ra5+ {[%clk 0:01:05.9]} 49. Ra4 {[%clk 0:00:53.1]} 49... Bc1+
{[%clk 0:01:01.3]} 50. Kb4 {[%clk 0:00:52.1]} 50... Qc5# {[%clk 0:01:00.9]} 0-1

[Event "*** Titled Tuesday Blitz"]
[Site "Chess.com"]
[Date "2020.04.21"]
[Round "5"]
[White "Teidi96"]
[Black "ajdemipopushi"]
[Result "0-1"]
[WhiteElo "2175"]
[BlackElo "2355"]
[TimeControl "180+1"]
[EndTime "10:55:57 PDT"]
[Termination "ajdemipopushi won by resignation"]

1. e4 {[%clk 0:03:00.9]} 1... c5 {[%clk 0:02:59.4]} 2. Nf3 {[%clk 0:03:00.9]}
2... g6 {[%clk 0:02:59.8]} 3. d4 {[%clk 0:02:58.3]} 3... cxd4 {[%clk 0:03:00]}
4. Nxd4 {[%clk 0:02:58.9]} 4... Bg7 {[%clk 0:03:00.4]} 5. c4 {[%clk 0:02:59]}
5... Nc6 {[%clk 0:03:01]} 6. Be3 {[%clk 0:02:59.1]} 6... Nf6 {[%clk 0:03:01.1]}
7. Nc3 {[%clk 0:02:58.9]} 7... Nxd4 {[%clk 0:03:01.7]} 8. Bxd4 {[%clk
0:02:58.8]} 8... Qa5 {[%clk 0:03:02.4]} 9. Be2 {[%clk 0:02:43.4]} 9... d6 {[%clk
0:03:02.3]} 10. O-O {[%clk 0:02:40.5]} 10... O-O {[%clk 0:03:02.8]} 11. h3
{[%clk 0:02:34.8]} 11... Be6 {[%clk 0:03:02.2]} 12. Qc2 {[%clk 0:02:21.1]} 12...
Rfc8 {[%clk 0:02:59.9]} 13. b3 {[%clk 0:02:19.1]} 13... a6 {[%clk 0:02:59.3]}
14. a4 {[%clk 0:02:09.2]} 14... Nd7 {[%clk 0:02:42.6]} 15. Bxg7 {[%clk
0:02:08.8]} 15... Kxg7 {[%clk 0:02:42.4]} 16. Qb2 {[%clk 0:01:54.3]} 16... f6
{[%clk 0:02:40]} 17. Nd5 {[%clk 0:01:52.7]} 17... Bxd5 {[%clk 0:02:31.9]} 18.
exd5 {[%clk 0:01:52.7]} 18... Qb4 {[%clk 0:02:28.1]} 19. Bg4 {[%clk 0:01:49.7]}
19... Rc7 {[%clk 0:02:25.2]} 20. Bxd7 {[%clk 0:01:49.8]} 20... Rxd7 {[%clk
0:02:25.5]} 21. Rfe1 {[%clk 0:01:38]} 21... Rc8 {[%clk 0:02:24.4]} 22. Qc2
{[%clk 0:01:35.2]} 22... b5 {[%clk 0:02:16.4]} 23. axb5 {[%clk 0:01:33.5]} 23...
axb5 {[%clk 0:02:16.5]} 24. Re4 {[%clk 0:01:30.8]} 24... bxc4 {[%clk 0:02:08.1]}
25. Rxc4 {[%clk 0:01:29.4]} 25... Rxc4 {[%clk 0:02:03.3]} 26. Qxc4 {[%clk
0:01:29.5]} 26... Rb7 {[%clk 0:02:01]} 27. Qc6 {[%clk 0:00:56.5]} 27... Qxb3
{[%clk 0:01:55.9]} 28. Ra8 {[%clk 0:00:50.7]} 28... Qd1+ {[%clk 0:01:01]} 29.
Kh2 {[%clk 0:00:49.9]} 29... Rb1 {[%clk 0:01:01.5]} 30. Qc8 {[%clk 0:00:21.7]}
30... Qg1+ {[%clk 0:01:00.6]} 31. Kg3 {[%clk 0:00:21.4]} 31... Rb3+ {[%clk
0:01:01.2]} 32. f3 {[%clk 0:00:19.4]} 32... Qe1+ {[%clk 0:01:00.8]} 33. Kh2
{[%clk 0:00:19.7]} 33... Qe5+ {[%clk 0:01:00.7]} 34. Kg1 {[%clk 0:00:16.7]}
34... Rb1+ {[%clk 0:01:00.3]} 0-1

[Event "*** Titled Tuesday Blitz"]
[Site "Chess.com"]
[Date "2020.04.21"]
[Round "5"]
[White "aa175"]
[Black "Chessmasterzt"]
[Result "0-1"]
[WhiteElo "2301"]
[BlackElo "2495"]
[TimeControl "180+1"]
[EndTime "10:55:58 PDT"]
[Termination "Chessmasterzt won on time"]

1. d4 {[%clk 0:03:00.9]} 1... d6 {[%clk 0:02:59.7]} 2. Nf3 {[%clk 0:02:59.5]}
2... Nf6 {[%clk 0:03:00]} 3. Bf4 {[%clk 0:02:59.6]} 3... g6 {[%clk 0:03:00.9]}
4. e3 {[%clk 0:03:00.1]} 4... Bg7 {[%clk 0:03:01.4]} 5. Be2 {[%clk 0:03:00.1]}
5... c5 {[%clk 0:03:01.4]} 6. O-O {[%clk 0:02:59.7]} 6... Qb6 {[%clk 0:02:58.3]}
7. Nc3 {[%clk 0:02:59.2]} 7... O-O {[%clk 0:02:52.8]} 8. a3 {[%clk 0:02:58.2]}
8... cxd4 {[%clk 0:02:48.5]} 9. exd4 {[%clk 0:02:57.6]} 9... Nc6 {[%clk
0:02:36.7]} 10. h3 {[%clk 0:02:57.5]} 10... Bd7 {[%clk 0:02:28.8]} 11. Re1
{[%clk 0:02:51.5]} 11... Rac8 {[%clk 0:02:29.1]} 12. Be3 {[%clk 0:02:49.6]}
12... Na5 {[%clk 0:02:20.1]} 13. Rb1 {[%clk 0:02:34.5]} 13... Nc4 {[%clk
0:02:16.8]} 14. Bxc4 {[%clk 0:02:31]} 14... Rxc4 {[%clk 0:02:17.7]} 15. Qd3
{[%clk 0:02:28.1]} 15... Rfc8 {[%clk 0:02:13.1]} 16. Nd2 {[%clk 0:02:26.7]}
16... R4c7 {[%clk 0:02:07.9]} 17. d5 {[%clk 0:02:17.9]} 17... Qa6 {[%clk
0:02:08.1]} 18. Qxa6 {[%clk 0:02:15.2]} 18... bxa6 {[%clk 0:02:09]} 19. Bd4
{[%clk 0:02:11]} 19... Bf5 {[%clk 0:02:08.9]} 20. Rbc1 {[%clk 0:02:03.2]} 20...
Bh6 {[%clk 0:02:09.1]} 21. Be3 {[%clk 0:02:00.3]} 21... Bg7 {[%clk 0:02:08.1]}
22. Bd4 {[%clk 0:01:48.5]} 22... Rb8 {[%clk 0:02:08.1]} 23. Nb3 {[%clk
0:01:43.8]} 23... e5 {[%clk 0:01:59.8]} 24. dxe6 {[%clk 0:01:43.6]} 24... Bxe6
{[%clk 0:02:00.2]} 25. Nd2 {[%clk 0:01:32.3]} 25... Rxb2 {[%clk 0:01:47.7]} 26.
Rb1 {[%clk 0:00:59.3]} 26... Rxc2 {[%clk 0:01:41.7]} 27. Rb8+ {[%clk 0:00:59]}
27... Rc8 {[%clk 0:01:42]} 28. Rxc8+ {[%clk 0:00:58.2]} 28... Bxc8 {[%clk
0:01:42.9]} 29. Bxf6 {[%clk 0:00:46.3]} 29... Bxf6 {[%clk 0:01:43.8]} 30. Nd5
{[%clk 0:00:18.4]} 30... Bd4 {[%clk 0:01:28]} 31. Re8+ {[%clk 0:00:11.6]} 31...
Kg7 {[%clk 0:01:27.8]} 32. Ne4 {[%clk 0:00:12.5]} 32... Bb7 {[%clk 0:01:09.5]}
33. Nb4 {[%clk 0:00:03]} 33... Rc1+ {[%clk 0:01:09.3]} 34. Kh2 {[%clk
0:00:02.9]} 34... Be5+ {[%clk 0:01:09.7]} 35. g3 {[%clk 0:00:02]} 35... Bxe4
{[%clk 0:01:09.4]} 0-1

[Event "*** Titled Tuesday Blitz"]
[Site "Chess.com"]
[Date "2020.04.21"]
[Round "5"]
[White "pouya21"]
[Black "Tonychess32"]
[Result "0-1"]
[WhiteElo "2778"]
[BlackElo "2643"]
[TimeControl "180+1"]
[EndTime "10:55:59 PDT"]
[Termination "Tonychess32 won by resignation"]

1. e4 {[%clk 0:03:00.9]} 1... c5 {[%clk 0:02:58]} 2. Nf3 {[%clk 0:03:00.9]} 2...
d6 {[%clk 0:02:58.6]} 3. d4 {[%clk 0:03:01.5]} 3... cxd4 {[%clk 0:02:59.5]} 4.
Nxd4 {[%clk 0:03:02.3]} 4... Nf6 {[%clk 0:03:00.1]} 5. Nc3 {[%clk 0:03:02.5]}
5... a6 {[%clk 0:03:00.6]} 6. Be3 {[%clk 0:03:01.6]} 6... e5 {[%clk 0:03:00.5]}
7. Nb3 {[%clk 0:03:01.7]} 7... Be7 {[%clk 0:03:00.7]} 8. f3 {[%clk 0:03:01]}
8... Be6 {[%clk 0:03:00.5]} 9. Qd2 {[%clk 0:03:01.2]} 9... h5 {[%clk 0:02:59.8]}
10. Nd5 {[%clk 0:02:56.3]} 10... Bxd5 {[%clk 0:02:55.2]} 11. exd5 {[%clk
0:02:57.2]} 11... Nbd7 {[%clk 0:02:55.7]} 12. Na5 {[%clk 0:02:52.3]} 12... Qc7
{[%clk 0:02:36.8]} 13. Be2 {[%clk 0:02:48.5]} 13... b6 {[%clk 0:02:33.1]} 14.
Nc6 {[%clk 0:02:22.6]} 14... Nb8 {[%clk 0:02:33]} 15. Nxe7 {[%clk 0:02:19.8]}
15... Kxe7 {[%clk 0:02:22.7]} 16. O-O {[%clk 0:02:20.1]} 16... Nbd7 {[%clk
0:02:22.2]} 17. f4 {[%clk 0:02:13]} 17... exf4 {[%clk 0:02:14.1]} 18. Rxf4
{[%clk 0:02:13.9]} 18... Ne5 {[%clk 0:02:01.9]} 19. Raf1 {[%clk 0:02:10.3]}
19... Nfd7 {[%clk 0:01:59.9]} 20. Rf5 {[%clk 0:01:56.3]} 20... f6 {[%clk
0:01:47.5]} 21. Rxh5 {[%clk 0:01:37.7]} 21... Rxh5 {[%clk 0:01:47.2]} 22. Bxh5
{[%clk 0:01:38.6]} 22... Nc4 {[%clk 0:01:42.9]} 23. Qd3 {[%clk 0:01:27.5]} 23...
Nxe3 {[%clk 0:01:25.9]} 24. Qg6 {[%clk 0:01:10.5]} 24... Qc5 {[%clk 0:01:20.4]}
25. Qf7+ {[%clk 0:01:08.6]} 25... Kd8 {[%clk 0:01:20.7]} 26. Qe8+ {[%clk
0:01:01.7]} 26... Kc7 {[%clk 0:01:20.8]} 27. Qxa8 {[%clk 0:01:01.9]} 27... Nxf1+
{[%clk 0:00:45.5]} 28. Kxf1 {[%clk 0:01:02.8]} 28... Qxc2 {[%clk 0:00:36.5]} 29.
Qxa6 {[%clk 0:00:40.2]} 29... Qc1+ {[%clk 0:00:35.7]} 30. Kf2 {[%clk 0:00:40]}
30... Qxb2+ {[%clk 0:00:36.3]} 31. Qe2 {[%clk 0:00:34.7]} 31... Qd4+ {[%clk
0:00:36.1]} 32. Qe3 {[%clk 0:00:33]} 32... Qh4+ {[%clk 0:00:35.6]} 0-1

[Event "*** Titled Tuesday Blitz"]
[Site "Chess.com"]
[Date "2020.04.21"]
[Round "5"]
[White "Forantes"]
[Black "RoelandPruijssers"]
[Result "0-1"]
[WhiteElo "2434"]
[BlackElo "2606"]
[TimeControl "180+1"]
[EndTime "10:56:01 PDT"]
[Termination "RoelandPruijssers won by checkmate"]

1. Nf3 {[%clk 0:03:00.9]} 1... f5 {[%clk 0:02:58.7]} 2. g3 {[%clk 0:02:54.8]}
2... Nf6 {[%clk 0:02:58.3]} 3. Bg2 {[%clk 0:02:55.2]} 3... g6 {[%clk 0:02:57.9]}
4. d4 {[%clk 0:02:55.7]} 4... Bg7 {[%clk 0:02:58.4]} 5. O-O {[%clk 0:02:56.3]}
5... O-O {[%clk 0:02:59.1]} 6. c4 {[%clk 0:02:56.4]} 6... d6 {[%clk 0:02:59.4]}
7. Nc3 {[%clk 0:02:56.7]} 7... Ne4 {[%clk 0:02:59.9]} 8. Qb3 {[%clk 0:02:52]}
8... Nc6 {[%clk 0:02:49.4]} 9. c5+ {[%clk 0:02:27.5]} 9... e6 {[%clk 0:02:47]}
10. cxd6 {[%clk 0:02:23.1]} 10... cxd6 {[%clk 0:02:44.9]} 11. Rd1 {[%clk
0:02:14.1]} 11... d5 {[%clk 0:02:23.8]} 12. a3 {[%clk 0:01:41.6]} 12... b6
{[%clk 0:02:16.6]} 13. e3 {[%clk 0:01:36.6]} 13... Ba6 {[%clk 0:02:14.1]} 14.
Qa4 {[%clk 0:01:23.9]} 14... Nxc3 {[%clk 0:01:59]} 15. bxc3 {[%clk 0:01:24.8]}
15... Na5 {[%clk 0:01:59.4]} 16. Nd2 {[%clk 0:01:08.5]} 16... Rc8 {[%clk
0:01:55.6]} 17. Bb2 {[%clk 0:01:08.3]} 17... Qe8 {[%clk 0:01:51.3]} 18. Qc2
{[%clk 0:00:52.4]} 18... Rf7 {[%clk 0:01:41.7]} 19. Bf1 {[%clk 0:00:44.1]} 19...
Bxf1 {[%clk 0:01:37.7]} 20. Rxf1 {[%clk 0:00:44.7]} 20... Rfc7 {[%clk
0:01:37.8]} 21. Qd3 {[%clk 0:00:39.1]} 21... Qa4 {[%clk 0:01:34.5]} 22. Rfc1
{[%clk 0:00:36.3]} 22... Bf8 {[%clk 0:01:30.9]} 23. Kf1 {[%clk 0:00:26.1]} 23...
b5 {[%clk 0:01:27.7]} 24. Ke2 {[%clk 0:00:25.8]} 24... a6 {[%clk 0:01:27.8]} 25.
h4 {[%clk 0:00:22.9]} 25... h5 {[%clk 0:01:27.3]} 26. f3 {[%clk 0:00:21.7]}
26... Nb3 {[%clk 0:01:21.6]} 27. Nxb3 {[%clk 0:00:19.9]} 27... Qxb3 {[%clk
0:01:21.8]} 28. Rc2 {[%clk 0:00:20.3]} 28... a5 {[%clk 0:01:16.3]} 29. Rg1
{[%clk 0:00:19.3]} 29... Bxa3 {[%clk 0:01:12.3]} 30. Bxa3 {[%clk 0:00:14.2]}
30... Rxc3 {[%clk 0:01:04.8]} 31. Rxc3 {[%clk 0:00:12.7]} 31... Rxc3 {[%clk
0:01:04.6]} 32. Qb1 {[%clk 0:00:10.1]} 32... Rc2+ {[%clk 0:00:59.7]} 33. Ke1
{[%clk 0:00:04.5]} 33... Qxe3+ {[%clk 0:00:58.5]} 34. Kd1 {[%clk 0:00:05.2]}
34... Qe2# {[%clk 0:00:58.4]} 0-1

[Event "*** Titled Tuesday Blitz"]
[Site "Chess.com"]
[Date "2020.04.21"]
[Round "5"]
[White "Cecile-Haussernot"]
[Black "Perecke"]
[Result "1-0"]
[WhiteElo "2355"]
[BlackElo "2150"]
[TimeControl "180+1"]
[EndTime "10:56:03 PDT"]
[Termination "Cecile-Haussernot won on time"]

1. e4 {[%clk 0:03:00.9]} 1... c5 {[%clk 0:02:58.9]} 2. Nf3 {[%clk 0:03:00.1]}
2... e6 {[%clk 0:02:58.5]} 3. d4 {[%clk 0:02:59.4]} 3... cxd4 {[%clk 0:02:59.4]}
4. Nxd4 {[%clk 0:03:00]} 4... Nc6 {[%clk 0:02:58.1]} 5. Nc3 {[%clk 0:03:00.4]}
5... Qc7 {[%clk 0:02:57.4]} 6. Be3 {[%clk 0:02:58.9]} 6... a6 {[%clk 0:02:56.5]}
7. Qd2 {[%clk 0:02:58.8]} 7... b5 {[%clk 0:02:54.4]} 8. f4 {[%clk 0:02:56.2]}
8... Bb7 {[%clk 0:02:47.6]} 9. Qf2 {[%clk 0:02:49.3]} 9... Nf6 {[%clk
0:02:44.2]} 10. Nxc6 {[%clk 0:02:35.7]} 10... Bxc6 {[%clk 0:02:37]} 11. Bb6
{[%clk 0:02:34.9]} 11... Qb7 {[%clk 0:02:37.1]} 12. e5 {[%clk 0:02:29.1]} 12...
Nd5 {[%clk 0:01:54]} 13. Nxd5 {[%clk 0:02:27]} 13... Bxd5 {[%clk 0:01:54.9]} 14.
Bd4 {[%clk 0:02:20.6]} 14... Be7 {[%clk 0:01:51]} 15. Bd3 {[%clk 0:02:17.2]}
15... Bxg2 {[%clk 0:01:20.6]} 16. Rg1 {[%clk 0:02:16.6]} 16... Be4 {[%clk
0:01:20.8]} 17. Rxg7 {[%clk 0:02:14.5]} 17... Bxd3 {[%clk 0:01:15.9]} 18. cxd3
{[%clk 0:02:15.4]} 18... O-O-O {[%clk 0:01:13.4]} 19. Ba7 {[%clk 0:02:07.5]}
19... Qh1+ {[%clk 0:00:43.1]} 20. Ke2 {[%clk 0:01:30.4]} 20... Qd5 {[%clk
0:00:17.6]} 21. Qb6 {[%clk 0:01:25.2]} 21... d6 {[%clk 0:00:07.2]} 22. Rc1+
{[%clk 0:01:06]} 22... Kd7 {[%clk 0:00:07.2]} 23. Rxf7 {[%clk 0:00:59.9]} 23...
Qg2+ {[%clk 0:00:02.7]} 24. Ke3 {[%clk 0:00:57.9]} 24... Ke8 {[%clk 0:00:02.2]}
25. Rxe7+ {[%clk 0:00:56.4]} 25... Kxe7 {[%clk 0:00:02.2]} 26. Rc7+ {[%clk
0:00:56.8]} 26... Kf8 {[%clk 0:00:01.8]} 27. Rxh7 {[%clk 0:00:50.1]} 1-0

[Event "*** Titled Tuesday Blitz"]
[Site "Chess.com"]
[Date "2020.04.21"]
[Round "5"]
[White "machupichu10"]
[Black "MrVenky"]
[Result "0-1"]
[WhiteElo "2749"]
[BlackElo "2545"]
[TimeControl "180+1"]
[EndTime "10:56:04 PDT"]
[Termination "MrVenky won by resignation"]

1. d4 {[%clk 0:03:00.9]} 1... Nf6 {[%clk 0:02:58.9]} 2. c4 {[%clk 0:03:00]} 2...
g6 {[%clk 0:02:58.5]} 3. Nf3 {[%clk 0:02:59.2]} 3... Bg7 {[%clk 0:02:58.1]} 4.
Nc3 {[%clk 0:02:56.6]} 4... O-O {[%clk 0:02:55.1]} 5. g3 {[%clk 0:02:55.5]} 5...
d6 {[%clk 0:02:54.2]} 6. Bg2 {[%clk 0:02:55.9]} 6... Nc6 {[%clk 0:02:54.3]} 7.
O-O {[%clk 0:02:56.1]} 7... a6 {[%clk 0:02:54.4]} 8. Bg5 {[%clk 0:02:51.3]} 8...
h6 {[%clk 0:02:47.7]} 9. Bxf6 {[%clk 0:02:49.4]} 9... Bxf6 {[%clk 0:02:40.6]}
10. Rc1 {[%clk 0:02:49.8]} 10... Bg7 {[%clk 0:02:39.3]} 11. h3 {[%clk
0:02:47.3]} 11... e5 {[%clk 0:02:38.3]} 12. d5 {[%clk 0:02:42.9]} 12... Nd4
{[%clk 0:02:34.8]} 13. Nd2 {[%clk 0:02:40.1]} 13... b5 {[%clk 0:02:09.1]} 14. e3
{[%clk 0:02:29]} 14... Nf5 {[%clk 0:02:04.2]} 15. b4 {[%clk 0:02:27.8]} 15...
Bd7 {[%clk 0:01:59.6]} 16. c5 {[%clk 0:02:15.9]} 16... h5 {[%clk 0:01:50.4]} 17.
Nb3 {[%clk 0:01:59.9]} 17... Bh6 {[%clk 0:01:48.9]} 18. Qe2 {[%clk 0:01:47.3]}
18... Bxe3 {[%clk 0:01:43.4]} 19. fxe3 {[%clk 0:01:45.7]} 19... Nxg3 {[%clk
0:01:43.2]} 20. Qf2 {[%clk 0:01:33]} 20... Nxf1 {[%clk 0:01:43]} 21. Rxf1 {[%clk
0:01:33.6]} 21... f5 {[%clk 0:01:42.9]} 22. h4 {[%clk 0:01:12.3]} 22... f4
{[%clk 0:01:38.4]} 23. Ne4 {[%clk 0:01:02.8]} 23... fxe3 {[%clk 0:01:08.1]} 24.
Qg3 {[%clk 0:00:38.1]} 24... Kg7 {[%clk 0:01:01.1]} 25. cxd6 {[%clk 0:00:02.7]}
25... cxd6 {[%clk 0:01:00.5]} 26. Re1 {[%clk 0:00:01.4]} 26... Bg4 {[%clk
0:00:50.1]} 27. Nxd6 {[%clk 0:00:01.2]} 27... Qxd6 {[%clk 0:00:48.8]} 0-1

[Event "*** Titled Tuesday Blitz"]
[Site "Chess.com"]
[Date "2020.04.21"]
[Round "5"]
[White "MasterKroket"]
[Black "artichaud"]
[Result "1-0"]
[WhiteElo "2430"]
[BlackElo "2222"]
[TimeControl "180+1"]
[EndTime "10:56:04 PDT"]
[Termination "MasterKroket won on time"]

1. d4 {[%clk 0:03:00.9]} 1... f5 {[%clk 0:02:59.6]} 2. c4 {[%clk 0:03:00.5]}
2... Nf6 {[%clk 0:02:59.2]} 3. Nf3 {[%clk 0:03:00.7]} 3... g6 {[%clk 0:02:58.6]}
4. Nc3 {[%clk 0:03:00.5]} 4... Bg7 {[%clk 0:02:58.4]} 5. g3 {[%clk 0:02:58.8]}
5... d6 {[%clk 0:02:58.2]} 6. Bg2 {[%clk 0:02:59.3]} 6... O-O {[%clk 0:02:58.9]}
7. O-O {[%clk 0:02:59.9]} 7... Na6 {[%clk 0:02:59.4]} 8. b3 {[%clk 0:02:58.7]}
8... c6 {[%clk 0:02:58.6]} 9. Bb2 {[%clk 0:02:58.7]} 9... Nc7 {[%clk 0:02:57.7]}
10. Qc2 {[%clk 0:02:52.5]} 10... b5 {[%clk 0:02:56.1]} 11. Nd2 {[%clk
0:02:46.9]} 11... bxc4 {[%clk 0:02:50]} 12. Bxc6 {[%clk 0:02:32.1]} 12... cxb3
{[%clk 0:02:33.7]} 13. axb3 {[%clk 0:02:29.7]} 13... Rb8 {[%clk 0:02:22.6]} 14.
Rxa7 {[%clk 0:02:29.6]} 14... Bd7 {[%clk 0:02:14]} 15. Bg2 {[%clk 0:02:15.6]}
15... Nb5 {[%clk 0:02:06.1]} 16. Nxb5 {[%clk 0:02:11.4]} 16... Bxb5 {[%clk
0:02:05.7]} 17. Nc4 {[%clk 0:02:05.9]} 17... Rc8 {[%clk 0:01:56.5]} 18. d5
{[%clk 0:01:40.7]} 18... Rc7 {[%clk 0:01:44.2]} 19. Rfa1 {[%clk 0:01:35.3]}
19... Rc5 {[%clk 0:01:28]} 20. Bd4 {[%clk 0:01:28.6]} 20... Bxc4 {[%clk
0:00:58.3]} 21. bxc4 {[%clk 0:01:25.6]} 21... Rc7 {[%clk 0:00:33.1]} 22. Qd3
{[%clk 0:01:24.9]} 22... Rxa7 {[%clk 0:00:32.1]} 23. Rxa7 {[%clk 0:01:23]} 23...
Re8 {[%clk 0:00:29]} 24. Qe3 {[%clk 0:01:17.3]} 24... Kf8 {[%clk 0:00:02.3]} 25.
Qe6 {[%clk 0:01:12.5]} 25... Qc8 {[%clk 0:00:01.9]} 26. Qxc8 {[%clk 0:00:50.3]}
26... Rxc8 {[%clk 0:00:01.6]} 27. Ra4 {[%clk 0:00:49.8]} 1-0